[Event "Live Chess"]
[Site "Chess.com"]
[Date "2024.06.01"]
[Round "-"]
[White "McFim"]
[Black "Enhard"]
[Result "0-1"]
[WhiteElo "1574"]
[BlackElo "1434"]
[TimeControl "300"]
[EndTime "10:47:53 PDT"]
[Termination "Enhard won on time"]

1. e4 {[%clk 0:04:56.9]} 1... c6 {[%clk 0:04:58.4]} 2. d4 {[%clk 0:04:55]} 2...
d5 {[%clk 0:04:57.7]} 3. exd5 {[%clk 0:04:54.3]} 3... cxd5 {[%clk 0:04:56.8]} 4.
Bd3 {[%clk 0:04:53.9]} 4... Nf6 {[%clk 0:04:55.8]} 5. c3 {[%clk 0:04:52.7]} 5...
Bg4 {[%clk 0:04:54.2]} 6. Nf3 {[%clk 0:04:50.5]} 6... a6 {[%clk 0:04:52.7]} 7.
a4 {[%clk 0:04:48.7]} 7... e6 {[%clk 0:04:51.1]} 8. O-O {[%clk 0:04:46.8]} 8...
Be7 {[%clk 0:04:49]} 9. Bf4 {[%clk 0:04:44.9]} 9... Nc6 {[%clk 0:04:46.9]} 10.
Nbd2 {[%clk 0:04:43.1]} 10... O-O {[%clk 0:04:41.1]} 11. Qe1 {[%clk 0:04:41.7]}
11... Bxf3 {[%clk 0:04:34.6]} 12. Nxf3 {[%clk 0:04:39.3]} 12... Bd6 {[%clk
0:04:33.9]} 13. Bxd6 {[%clk 0:04:36.8]} 13... Qxd6 {[%clk 0:04:32.7]} 14. Ne5
{[%clk 0:04:34]} 14... Qd8 {[%clk 0:04:30.1]} 15. Qe3 {[%clk 0:04:08.9]} 15...
h6 {[%clk 0:04:28.3]} 16. Rfe1 {[%clk 0:04:03.5]} 16... Rc8 {[%clk 0:04:26.9]}
17. Rad1 {[%clk 0:03:38.3]} 17... Na5 {[%clk 0:03:57.7]} 18. Bc2 {[%clk
0:03:32.7]} 18... Nc4 {[%clk 0:03:55.2]} 19. Nxc4 {[%clk 0:03:28.3]} 19... Rxc4
{[%clk 0:03:52.1]} 20. Qd3 {[%clk 0:03:25.2]} 20... Rc7 {[%clk 0:03:37.9]} 21.
Re3 {[%clk 0:03:23.1]} 21... g6 {[%clk 0:03:34.9]} 22. Rh3 {[%clk 0:03:16.4]}
22... Kg7 {[%clk 0:03:32.4]} 23. Qd2 {[%clk 0:03:07.6]} 23... h5 {[%clk
0:03:27.9]} 24. Qf4 {[%clk 0:02:46.8]} 24... Ng4 {[%clk 0:03:17.1]} 25. f3
{[%clk 0:02:38.4]} 25... Qf6 {[%clk 0:03:13.3]} 26. Qd2 {[%clk 0:02:34.2]} 26...
Nh6 {[%clk 0:03:10.2]} 27. g4 {[%clk 0:02:28.5]} 27... hxg4 {[%clk 0:03:01.4]}
28. fxg4 {[%clk 0:02:26.7]} 28... g5 {[%clk 0:02:41.1]} 29. Rh5 {[%clk
0:02:19.1]} 29... Rg8 {[%clk 0:02:27.5]} 30. Rf1 {[%clk 0:02:02.5]} 30... Qe7
{[%clk 0:02:20.2]} 31. Rxg5+ {[%clk 0:02:01.1]} 31... Kf8 {[%clk 0:02:17.4]} 32.
Rxg8+ {[%clk 0:01:55.7]} 32... Nxg8 {[%clk 0:02:14.2]} 33. Bh7 {[%clk 0:01:28]}
33... f6 {[%clk 0:01:59.9]} 34. Bxg8 {[%clk 0:01:19.4]} 34... Kxg8 {[%clk
0:01:57.7]} 35. Qf4 {[%clk 0:01:16.1]} 35... Qg7 {[%clk 0:01:51.1]} 36. h3
{[%clk 0:01:12.9]} 36... f5 {[%clk 0:01:47.6]} 37. g5 {[%clk 0:01:10]} 37... Qg6
{[%clk 0:01:43.2]} 38. h4 {[%clk 0:01:08.4]} 38... Rh7 {[%clk 0:01:41.1]} 39.
Kf2 {[%clk 0:01:04.4]} 39... Re7 {[%clk 0:01:28.9]} 40. Rh1 {[%clk 0:00:59.5]}
40... Qh5 {[%clk 0:01:25.2]} 41. Qf3 {[%clk 0:00:55.9]} 41... Rh7 {[%clk
0:01:09.6]} 42. Qxh5 {[%clk 0:00:48.5]} 42... Rxh5 {[%clk 0:01:08.3]} 43. Kf3
{[%clk 0:00:47.9]} 43... Kg7 {[%clk 0:01:07.6]} 44. Kf4 {[%clk 0:00:46.9]} 44...
Kg6 {[%clk 0:01:07.1]} 45. Ke5 {[%clk 0:00:45.1]} 45... Kf7 {[%clk 0:01:04.8]}
46. a5 {[%clk 0:00:39.7]} 46... Rh7 {[%clk 0:00:53.4]} 47. h5 {[%clk 0:00:37.8]}
47... Rh8 {[%clk 0:00:50.6]} 48. g6+ {[%clk 0:00:35.3]} 48... Kg7 {[%clk
0:00:49.6]} 49. Kxe6 {[%clk 0:00:33.8]} 49... f4 {[%clk 0:00:48]} 50. Kf5 {[%clk
0:00:24.7]} 50... f3 {[%clk 0:00:46.3]} 51. Kg5 {[%clk 0:00:24]} 51... f2 {[%clk
0:00:42.5]} 52. Rf1 {[%clk 0:00:22.6]} 52... Rf8 {[%clk 0:00:36.8]} 53. h6+
{[%clk 0:00:21.5]} 53... Kg8 {[%clk 0:00:33.5]} 54. b3 {[%clk 0:00:17.1]} 54...
Rf3 {[%clk 0:00:28.3]} 55. c4 {[%clk 0:00:15.6]} 55... Rg3+ {[%clk 0:00:25.1]}
56. Kf5 {[%clk 0:00:13.9]} 56... Rf3+ {[%clk 0:00:23.6]} 57. Kg4 {[%clk
0:00:12.5]} 57... Rf6 {[%clk 0:00:21]} 58. Kg5 {[%clk 0:00:10.6]} 58... Rf3
{[%clk 0:00:19.5]} 59. cxd5 {[%clk 0:00:09.5]} 59... Rg3+ {[%clk 0:00:18.1]} 60.
Kf6 {[%clk 0:00:08]} 60... Rf3+ {[%clk 0:00:17.4]} 61. Ke5 {[%clk 0:00:06.6]}
61... Re3+ {[%clk 0:00:16.8]} 62. Kf4 {[%clk 0:00:04.6]} 62... Rxb3 {[%clk
0:00:15.3]} 63. Rxf2 {[%clk 0:00:03.7]} 63... Rb4 {[%clk 0:00:13.8]} 64. Ke4
{[%clk 0:00:02.1]} 64... Rb5 {[%clk 0:00:12.7]} 65. Rf7 {[%clk 0:00:00.8]} 65...
Rxa5 {[%clk 0:00:11.4]} 0-1

[Event "Live Chess"]
[Site "Chess.com"]
[Date "2024.06.01"]
[Round "-"]
[White "lateforthesky"]
[Black "updatedopenings2024"]
[Result "0-1"]
[WhiteElo "2153"]
[BlackElo "1880"]
[TimeControl "300"]
[EndTime "10:47:54 PDT"]
[Termination "updatedopenings2024 won by resignation"]

1. e4 {[%clk 0:04:55]} 1... d5 {[%clk 0:04:57.8]} 2. exd5 {[%clk 0:04:53.6]}
2... Qxd5 {[%clk 0:04:57.5]} 3. Nc3 {[%clk 0:04:52.7]} 3... Qa5 {[%clk
0:04:56.9]} 4. b4 {[%clk 0:04:50.1]} 4... Qe5+ {[%clk 0:04:53.1]} 5. Be2 {[%clk
0:04:47.1]} 5... Nf6 {[%clk 0:04:52.1]} 6. Nf3 {[%clk 0:04:46.1]} 6... Qf5
{[%clk 0:04:47]} 7. O-O {[%clk 0:04:43]} 7... Nc6 {[%clk 0:04:46]} 8. Nb5 {[%clk
0:04:33.7]} 8... Qd7 {[%clk 0:04:44.2]} 9. Rb1 {[%clk 0:04:32]} 9... a6 {[%clk
0:04:42.6]} 10. Na3 {[%clk 0:04:29.8]} 10... e5 {[%clk 0:04:41.9]} 11. Re1
{[%clk 0:04:18]} 11... Bd6 {[%clk 0:04:40.8]} 12. d3 {[%clk 0:04:15.6]} 12...
O-O {[%clk 0:04:39.5]} 13. Nc4 {[%clk 0:04:14.1]} 13... Re8 {[%clk 0:04:34]} 14.
Nxd6 {[%clk 0:04:11.6]} 14... Qxd6 {[%clk 0:04:32.9]} 15. Bg5 {[%clk 0:04:07.5]}
15... Bg4 {[%clk 0:04:27.6]} 16. h3 {[%clk 0:04:05.8]} 16... Bh5 {[%clk
0:04:25]} 17. a4 {[%clk 0:04:02.8]} 17... Nxb4 {[%clk 0:04:16.1]} 18. Qd2 {[%clk
0:04:01.3]} 18... a5 {[%clk 0:04:12.6]} 19. c3 {[%clk 0:03:59.1]} 19... Nbd5
{[%clk 0:04:11.9]} 20. Rxb7 {[%clk 0:03:55.4]} 20... h6 {[%clk 0:04:09.4]} 21.
Bh4 {[%clk 0:03:52]} 21... e4 {[%clk 0:04:07.7]} 22. dxe4 {[%clk 0:03:49]} 22...
Nxe4 {[%clk 0:04:07.6]} 23. Qd4 {[%clk 0:03:34.3]} 23... Ndxc3 {[%clk
0:04:02.3]} 24. Qxd6 {[%clk 0:03:27.4]} 24... Nxd6 {[%clk 0:04:02.2]} 25. Rxc7
{[%clk 0:03:26.4]} 25... Nxe2+ {[%clk 0:04:01.4]} 26. Rxe2 {[%clk 0:03:25.5]}
26... Rxe2 {[%clk 0:04:00.3]} 27. g4 {[%clk 0:03:22.2]} 27... Bg6 {[%clk
0:03:59.3]} 28. Nd4 {[%clk 0:03:17.5]} 28... Re1+ {[%clk 0:03:55.6]} 29. Kg2
{[%clk 0:03:12.7]} 29... Rd1 {[%clk 0:03:55.2]} 30. Nc6 {[%clk 0:03:10.5]} 30...
Rc1 {[%clk 0:03:52.2]} 31. Ne7+ {[%clk 0:03:08.4]} 31... Kh7 {[%clk 0:03:49.4]}
32. Rxc1 {[%clk 0:03:05.5]} 32... Be4+ {[%clk 0:03:48.6]} 33. f3 {[%clk
0:03:01.7]} 33... Bg6 {[%clk 0:03:47.8]} 34. Nxg6 {[%clk 0:03:00]} 34... fxg6
{[%clk 0:03:47.7]} 35. Bg3 {[%clk 0:02:56.4]} 35... Ne8 {[%clk 0:03:42.1]} 36.
Rc5 {[%clk 0:02:53.6]} 36... Nf6 {[%clk 0:03:41.6]} 37. Be1 {[%clk 0:02:50.2]}
37... Re8 {[%clk 0:03:40.7]} 38. Bxa5 {[%clk 0:02:48.6]} 38... Re2+ {[%clk
0:03:40.6]} 39. Kf1 {[%clk 0:02:46.1]} 39... Ra2 {[%clk 0:03:40.5]} 40. Rc4
{[%clk 0:02:41.6]} 40... Nd5 {[%clk 0:03:39.7]} 41. Rd4 {[%clk 0:02:28.9]} 41...
Ne3+ {[%clk 0:03:35.3]} 42. Kg1 {[%clk 0:02:26.3]} 42... Rg2+ {[%clk 0:03:26.4]}
43. Kh1 {[%clk 0:02:24.5]} 43... Ra2 {[%clk 0:03:25.7]} 44. Bd2 {[%clk
0:02:22.6]} 44... Nf1 {[%clk 0:03:21.2]} 45. Bc3 {[%clk 0:02:13.6]} 45... Ng3+
{[%clk 0:03:19.8]} 46. Kg1 {[%clk 0:02:09.9]} 46... Ne2+ {[%clk 0:03:19.3]} 47.
Kf1 {[%clk 0:02:08.9]} 47... Nxc3 {[%clk 0:03:14.9]} 48. h4 {[%clk 0:02:05.9]}
48... Ne2 {[%clk 0:03:10.3]} 49. Rc4 {[%clk 0:02:02.4]} 49... Ng3+ {[%clk
0:03:04.5]} 50. Kg1 {[%clk 0:01:59.7]} 50... g5 {[%clk 0:02:56.3]} 51. h5 {[%clk
0:01:57.6]} 51... Ne2+ {[%clk 0:02:54.2]} 52. Kf1 {[%clk 0:01:55.3]} 52... Nf4
{[%clk 0:02:54.1]} 0-1

[Event "Live Chess"]
[Site "Chess.com"]
[Date "2024.06.01"]
[Round "-"]
[White "nitrofish07"]
[Black "bill77678"]
[Result "0-1"]
[WhiteElo "2117"]
[BlackElo "1837"]
[TimeControl "300"]
[EndTime "10:48:02 PDT"]
[Termination "bill77678 won by resignation"]

1. e4 {[%clk 0:04:54.6]} 1... c6 {[%clk 0:04:58.8]} 2. d4 {[%clk 0:04:53.5]}
2... d5 {[%clk 0:04:58.4]} 3. e5 {[%clk 0:04:53.4]} 3... c5 {[%clk 0:04:57.5]}
4. dxc5 {[%clk 0:04:49.8]} 4... e6 {[%clk 0:04:56]} 5. b4 {[%clk 0:04:47.7]}
5... a5 {[%clk 0:04:55]} 6. c3 {[%clk 0:04:46.7]} 6... axb4 {[%clk 0:04:48.7]}
7. cxb4 {[%clk 0:04:46.6]} 7... Nc6 {[%clk 0:04:47.8]} 8. Bb5 {[%clk 0:04:45.3]}
8... Bd7 {[%clk 0:04:45.4]} 9. Bxc6 {[%clk 0:04:43.3]} 9... Bxc6 {[%clk
0:04:44.2]} 10. Ne2 {[%clk 0:04:41]} 10... b6 {[%clk 0:04:39.6]} 11. Be3 {[%clk
0:04:37.7]} 11... bxc5 {[%clk 0:04:37]} 12. Bxc5 {[%clk 0:04:32]} 12... Bxc5
{[%clk 0:04:35.5]} 13. bxc5 {[%clk 0:04:31.9]} 13... Qa5+ {[%clk 0:04:33.9]} 14.
Nd2 {[%clk 0:04:27.9]} 14... Qxc5 {[%clk 0:04:27.1]} 15. O-O {[%clk 0:04:26.7]}
15... Ne7 {[%clk 0:04:25]} 16. Nb3 {[%clk 0:04:25]} 16... Qa3 {[%clk 0:04:12]}
17. Ned4 {[%clk 0:04:18.1]} 17... O-O {[%clk 0:04:10.4]} 18. Qc2 {[%clk
0:04:11.4]} 18... Rfc8 {[%clk 0:04:06.9]} 19. Rfc1 {[%clk 0:04:01.5]} 19... Ba4
{[%clk 0:03:46.4]} 20. Qd2 {[%clk 0:03:52.9]} 20... Bxb3 {[%clk 0:03:24.7]} 21.
Nxb3 {[%clk 0:03:46.6]} 21... Rxc1+ {[%clk 0:03:18.9]} 22. Rxc1 {[%clk
0:03:46.5]} 22... Rc8 {[%clk 0:03:13.2]} 23. Rxc8+ {[%clk 0:03:44.6]} 23... Nxc8
{[%clk 0:03:13.1]} 24. Qc2 {[%clk 0:03:42.6]} 24... Qa6 {[%clk 0:03:10.3]} 25.
h3 {[%clk 0:03:38.9]} 25... g6 {[%clk 0:02:58.9]} 26. Nc5 {[%clk 0:03:33.6]}
26... Qc6 {[%clk 0:02:56.6]} 27. a4 {[%clk 0:03:31.2]} 27... Nb6 {[%clk
0:02:48.7]} 28. a5 {[%clk 0:02:50.2]} 28... Nc4 {[%clk 0:02:47.5]} 29. Nb3
{[%clk 0:02:15.8]} 29... Nxa5 {[%clk 0:02:39]} 30. Qa2 {[%clk 0:02:09.6]} 30...
Nxb3 {[%clk 0:02:31.5]} 31. Qxb3 {[%clk 0:02:08.8]} 31... Qc1+ {[%clk
0:02:26.7]} 32. Kh2 {[%clk 0:02:08.7]} 32... Qf4+ {[%clk 0:02:25.4]} 33. g3
{[%clk 0:02:05.4]} 33... Qxe5 {[%clk 0:02:24.2]} 34. Kg2 {[%clk 0:02:02.5]}
34... Qe4+ {[%clk 0:02:21.7]} 35. Kg1 {[%clk 0:02:01.1]} 35... d4 {[%clk
0:02:15.9]} 36. Qb8+ {[%clk 0:01:58.5]} 36... Kg7 {[%clk 0:02:14.6]} 37. h4
{[%clk 0:01:57.9]} 37... d3 {[%clk 0:02:09.3]} 38. Qd8 {[%clk 0:01:56.2]} 38...
e5 {[%clk 0:01:58.2]} 39. h5 {[%clk 0:01:54.3]} 39... Qd4 {[%clk 0:01:26.4]} 40.
Qxd4 {[%clk 0:00:49.3]} 40... exd4 {[%clk 0:01:26.3]} 41. hxg6 {[%clk
0:00:48.9]} 41... Kxg6 {[%clk 0:01:22.4]} 42. Kf1 {[%clk 0:00:47.6]} 42... Kg5
{[%clk 0:01:20.8]} 43. f3 {[%clk 0:00:40.9]} 43... h5 {[%clk 0:01:19.5]} 44. Ke1
{[%clk 0:00:40]} 44... f5 {[%clk 0:01:11.8]} 45. Kd2 {[%clk 0:00:34.3]} 45... f4
{[%clk 0:01:09.3]} 0-1

[Event "Live Chess"]
[Site "Chess.com"]
[Date "2024.06.01"]
[Round "-"]
[White "viktorskliarov"]
[Black "RuslanChessN"]
[Result "1-0"]
[WhiteElo "2643"]
[BlackElo "1944"]
[TimeControl "300"]
[EndTime "10:48:21 PDT"]
[Termination "viktorskliarov won by resignation"]

1. e4 {[%clk 0:04:58.1]} 1... c6 {[%clk 0:04:57.4]} 2. d4 {[%clk 0:04:57.2]}
2... d5 {[%clk 0:04:56.4]} 3. e5 {[%clk 0:04:56.9]} 3... Bf5 {[%clk 0:04:54.1]}
4. Nf3 {[%clk 0:04:56.5]} 4... e6 {[%clk 0:04:52.9]} 5. Be2 {[%clk 0:04:55]}
5... c5 {[%clk 0:04:51.3]} 6. Be3 {[%clk 0:04:52.1]} 6... Nc6 {[%clk 0:04:49.7]}
7. Nc3 {[%clk 0:04:33.6]} 7... Qb6 {[%clk 0:04:43.8]} 8. O-O {[%clk 0:04:32]}
8... Qxb2 {[%clk 0:04:39.9]} 9. Qe1 {[%clk 0:04:30.9]} 9... cxd4 {[%clk
0:04:33]} 10. Bxd4 {[%clk 0:04:20.8]} 10... Qxc2 {[%clk 0:04:26.6]} 11. Rc1
{[%clk 0:03:52.6]} 11... Qb2 {[%clk 0:04:15.9]} 12. Nxd5 {[%clk 0:03:50.5]}
12... Nxd4 {[%clk 0:03:42.3]} 13. Nc7+ {[%clk 0:03:48.2]} 13... Kd7 {[%clk
0:03:33.4]} 14. Nxd4 {[%clk 0:03:46]} 1-0

[Event "Live Chess"]
[Site "Chess.com"]
[Date "2024.06.01"]
[Round "-"]
[White "Zhevzh1k7"]
[Black "Mangoalo"]
[Result "0-1"]
[WhiteElo "1074"]
[BlackElo "1013"]
[TimeControl "300"]
[EndTime "10:48:23 PDT"]
[Termination "Mangoalo won by checkmate"]

1. e4 {[%clk 0:04:56.3]} 1... d5 {[%clk 0:04:59.9]} 2. exd5 {[%clk 0:04:53.8]}
2... Nf6 {[%clk 0:04:59.8]} 3. Nf3 {[%clk 0:04:51.2]} 3... c6 {[%clk 0:04:59.4]}
4. dxc6 {[%clk 0:04:49.8]} 4... Nxc6 {[%clk 0:04:59.3]} 5. Nc3 {[%clk
0:04:48.2]} 5... Bg4 {[%clk 0:04:59]} 6. Be2 {[%clk 0:04:45.7]} 6... e6 {[%clk
0:04:58.6]} 7. h3 {[%clk 0:04:44.1]} 7... Bxf3 {[%clk 0:04:55.5]} 8. Bxf3 {[%clk
0:04:42.5]} 8... Bb4 {[%clk 0:04:55.4]} 9. a3 {[%clk 0:04:39.2]} 9... Bxc3
{[%clk 0:04:54]} 10. dxc3 {[%clk 0:04:37]} 10... Qxd1+ {[%clk 0:04:53.9]} 11.
Bxd1 {[%clk 0:04:36.3]} 11... O-O-O {[%clk 0:04:53.1]} 12. O-O {[%clk
0:04:35.7]} 12... Rd7 {[%clk 0:04:49.5]} 13. Bf3 {[%clk 0:04:33.6]} 13... Rhd8
{[%clk 0:04:48.1]} 14. Bxc6 {[%clk 0:04:31.6]} 14... bxc6 {[%clk 0:04:48]} 15.
Be3 {[%clk 0:04:27.3]} 15... Nd5 {[%clk 0:04:46.8]} 16. Bxa7 {[%clk 0:04:25.6]}
16... Kb7 {[%clk 0:04:46.4]} 17. Bd4 {[%clk 0:04:21.3]} 17... g6 {[%clk
0:04:43.3]} 18. a4 {[%clk 0:04:19.8]} 18... f5 {[%clk 0:04:42.2]} 19. a5 {[%clk
0:04:18.2]} 19... Ka6 {[%clk 0:04:42.1]} 20. c4 {[%clk 0:04:11.9]} 20... Nb4
{[%clk 0:04:40.6]} 21. Bb6 {[%clk 0:04:06.5]} 21... Rb8 {[%clk 0:04:37.6]} 22.
c3 {[%clk 0:04:03.9]} 22... Nd3 {[%clk 0:04:32.3]} 23. Rfd1 {[%clk 0:04:00.4]}
23... Rbb7 {[%clk 0:04:27.9]} 24. c5 {[%clk 0:03:57]} 24... Nxb2 {[%clk
0:04:25.1]} 25. Rxd7 {[%clk 0:03:54.9]} 25... Rxd7 {[%clk 0:04:25]} 26. Rb1
{[%clk 0:03:52.7]} 26... Na4 {[%clk 0:04:20.1]} 27. c4 {[%clk 0:03:49.8]} 27...
Rb7 {[%clk 0:04:18.9]} 28. f4 {[%clk 0:03:46.9]} 28... Nxc5 {[%clk 0:04:14.7]}
29. Kf2 {[%clk 0:03:39.2]} 29... Na4 {[%clk 0:04:13.3]} 30. c5 {[%clk
0:03:35.7]} 30... Nxc5 {[%clk 0:04:10.8]} 31. Ke3 {[%clk 0:03:35]} 31... Na4
{[%clk 0:04:09.2]} 32. Kd4 {[%clk 0:03:33.4]} 32... Nxb6 {[%clk 0:04:08.4]} 33.
axb6 {[%clk 0:03:32]} 33... Rxb6 {[%clk 0:04:08.3]} 34. Ra1+ {[%clk 0:03:29.8]}
34... Kb7 {[%clk 0:04:06.6]} 35. Ke5 {[%clk 0:03:29.2]} 35... c5 {[%clk
0:04:05]} 36. Kf6 {[%clk 0:03:27.5]} 36... c4 {[%clk 0:04:02]} 37. Kg7 {[%clk
0:03:26.2]} 37... c3 {[%clk 0:03:59.6]} 38. Kxh7 {[%clk 0:03:25]} 38... c2
{[%clk 0:03:58.5]} 39. Rc1 {[%clk 0:03:24.4]} 39... Rc6 {[%clk 0:03:57.6]} 40.
Kxg6 {[%clk 0:03:22.3]} 40... e5+ {[%clk 0:03:56.9]} 41. Kxf5 {[%clk 0:03:20.4]}
41... e4 {[%clk 0:03:56.8]} 42. Kxe4 {[%clk 0:03:19.1]} 42... Kc7 {[%clk
0:03:55]} 43. g4 {[%clk 0:03:18.1]} 43... Kd7 {[%clk 0:03:53.7]} 44. f5 {[%clk
0:03:16.8]} 44... Ke7 {[%clk 0:03:52.8]} 45. Kf4 {[%clk 0:03:16.3]} 45... Kf6
{[%clk 0:03:52]} 46. g5+ {[%clk 0:03:15.7]} 46... Kg7 {[%clk 0:03:51.2]} 47. h4
{[%clk 0:03:14.5]} 47... Kg8 {[%clk 0:03:49.8]} 48. Kg4 {[%clk 0:03:13.5]} 48...
Rc4+ {[%clk 0:03:49]} 49. Kh5 {[%clk 0:03:12.7]} 49... Kg7 {[%clk 0:03:47.9]}
50. f6+ {[%clk 0:03:11.4]} 50... Kf7 {[%clk 0:03:46.7]} 51. Kh6 {[%clk
0:03:05.2]} 51... Rxh4# {[%clk 0:03:45]} 0-1

[Event "Live Chess"]
[Site "Chess.com"]
[Date "2024.06.01"]
[Round "-"]
[White "MellowAesthetic"]
[Black "TC2304"]
[Result "0-1"]
[WhiteElo "2052"]
[BlackElo "2336"]
[TimeControl "300"]
[EndTime "10:48:24 PDT"]
[Termination "TC2304 won on time"]

1. e4 {[%clk 0:04:58.4]} 1... Nc6 {[%clk 0:04:58.7]} 2. Nf3 {[%clk 0:04:57.1]}
2... d6 {[%clk 0:04:57.2]} 3. d4 {[%clk 0:04:55.9]} 3... Nf6 {[%clk 0:04:56.9]}
4. Nc3 {[%clk 0:04:32.1]} 4... Bg4 {[%clk 0:04:52]} 5. Bb5 {[%clk 0:04:28.2]}
5... a6 {[%clk 0:04:48.6]} 6. Bxc6+ {[%clk 0:04:25.8]} 6... bxc6 {[%clk
0:04:48.5]} 7. h3 {[%clk 0:04:22.5]} 7... Bxf3 {[%clk 0:04:41.7]} 8. Qxf3 {[%clk
0:04:21.1]} 8... d5 {[%clk 0:04:36.6]} 9. e5 {[%clk 0:04:00.2]} 9... Nd7 {[%clk
0:04:35.2]} 10. O-O {[%clk 0:03:02.8]} 10... e6 {[%clk 0:04:33.4]} 11. Ne2
{[%clk 0:02:38.2]} 11... c5 {[%clk 0:04:31.6]} 12. c3 {[%clk 0:02:37.6]} 12...
cxd4 {[%clk 0:04:30]} 13. cxd4 {[%clk 0:02:37.5]} 13... c5 {[%clk 0:04:29.4]}
14. Qg3 {[%clk 0:01:55.7]} 14... g6 {[%clk 0:04:19.5]} 15. Bg5 {[%clk
0:01:43.6]} 15... Be7 {[%clk 0:04:11.7]} 16. f4 {[%clk 0:01:24.1]} 16... cxd4
{[%clk 0:04:08.2]} 17. Bxe7 {[%clk 0:01:10.4]} 17... Qxe7 {[%clk 0:04:06.2]} 18.
Nxd4 {[%clk 0:01:10]} 18... O-O {[%clk 0:04:03.8]} 19. f5 {[%clk 0:00:37]} 19...
Qc5 {[%clk 0:03:59.1]} 20. Rad1 {[%clk 0:00:31.4]} 20... exf5 {[%clk 0:03:58.3]}
21. Rxf5 {[%clk 0:00:30.4]} 21... Rae8 {[%clk 0:03:56.3]} 22. Kh1 {[%clk
0:00:21.3]} 22... Kh8 {[%clk 0:03:55]} 23. e6 {[%clk 0:00:11.9]} 23... fxe6
{[%clk 0:03:47.1]} 24. Rxf8+ {[%clk 0:00:09.6]} 24... Qxf8 {[%clk 0:03:47]} 25.
Qc7 {[%clk 0:00:05.5]} 25... Qg7 {[%clk 0:03:42.9]} 26. Rf1 {[%clk 0:00:01.3]}
26... Ne5 {[%clk 0:03:35.1]} 0-1

[Event "Live Chess"]
[Site "Chess.com"]
[Date "2024.06.01"]
[Round "-"]
[White "ShanthamGrarks"]
[Black "PureDashingOctopus"]
[Result "0-1"]
[WhiteElo "1912"]
[BlackElo "2237"]
[TimeControl "300"]
[EndTime "10:48:25 PDT"]
[Termination "PureDashingOctopus won by resignation"]

1. d4 {[%clk 0:04:57.3]} 1... Nf6 {[%clk 0:04:58.6]} 2. Nc3 {[%clk 0:04:51.1]}
2... d5 {[%clk 0:04:57.1]} 3. Bf4 {[%clk 0:04:49.5]} 3... e6 {[%clk 0:04:53.5]}
4. e3 {[%clk 0:04:49]} 4... Bd6 {[%clk 0:04:50.3]} 5. Nf3 {[%clk 0:04:44.7]}
5... O-O {[%clk 0:04:47.8]} 6. Bd3 {[%clk 0:04:41.9]} 6... Qe7 {[%clk
0:04:41.5]} 7. Ne5 {[%clk 0:04:40]} 7... Nbd7 {[%clk 0:04:38.2]} 8. g4 {[%clk
0:04:32.9]} 8... c5 {[%clk 0:04:25]} 9. g5 {[%clk 0:04:30]} 9... Ne8 {[%clk
0:04:21.7]} 10. h4 {[%clk 0:04:27.9]} 10... cxd4 {[%clk 0:04:16.9]} 11. exd4
{[%clk 0:04:26.1]} 11... f6 {[%clk 0:04:14.8]} 12. Nxd7 {[%clk 0:04:20.8]} 12...
Bxd7 {[%clk 0:04:11.2]} 13. Bxd6 {[%clk 0:04:13.4]} 13... Qxd6 {[%clk
0:04:08.8]} 14. g6 {[%clk 0:04:12.2]} 14... h6 {[%clk 0:04:04.5]} 15. h5 {[%clk
0:04:10.6]} 15... Nc7 {[%clk 0:03:58.4]} 16. Qd2 {[%clk 0:04:06.9]} 16... e5
{[%clk 0:03:54.7]} 17. O-O-O {[%clk 0:04:01.2]} 17... e4 {[%clk 0:03:42.7]} 18.
Be2 {[%clk 0:03:46.4]} 18... f5 {[%clk 0:03:37.1]} 19. f4 {[%clk 0:03:43.3]}
19... Ne6 {[%clk 0:03:27.4]} 20. Rhf1 {[%clk 0:03:36.9]} 20... a6 {[%clk
0:03:22.3]} 21. a3 {[%clk 0:03:11.5]} 21... b5 {[%clk 0:03:20.4]} 22. Na2 {[%clk
0:03:10]} 22... a5 {[%clk 0:03:18.5]} 23. Kb1 {[%clk 0:02:51.4]} 23... Rfb8
{[%clk 0:03:14.4]} 24. Rf2 {[%clk 0:02:38.1]} 24... b4 {[%clk 0:03:12.6]} 25. a4
{[%clk 0:02:32.8]} 25... Bxa4 {[%clk 0:03:10.2]} 26. b3 {[%clk 0:02:31.7]} 26...
Bd7 {[%clk 0:03:07.8]} 27. Bf1 {[%clk 0:02:28.4]} 27... a4 {[%clk 0:03:06.2]}
28. Bh3 {[%clk 0:02:20.5]} 28... Nc7 {[%clk 0:02:56.4]} 29. Qe2 {[%clk
0:02:07.7]} 29... axb3 {[%clk 0:02:47.5]} 30. cxb3 {[%clk 0:02:05.8]} 30... Nb5
{[%clk 0:02:47]} 31. Rc1 {[%clk 0:01:56.4]} 31... Rxa2 {[%clk 0:02:39.9]} 32.
Qxa2 {[%clk 0:01:53.8]} 32... Nc3+ {[%clk 0:02:39.4]} 33. Rxc3 {[%clk
0:01:52.5]} 33... bxc3 {[%clk 0:02:39.3]} 34. Kc2 {[%clk 0:01:38.1]} 34... Qb4
{[%clk 0:02:33.6]} 35. Bf1 {[%clk 0:01:14.2]} 35... Qxd4 {[%clk 0:02:31.2]} 36.
Re2 {[%clk 0:01:12.5]} 36... Bb5 {[%clk 0:02:26.5]} 37. Re1 {[%clk 0:00:25.6]}
37... Qd2+ {[%clk 0:02:22.4]} 0-1

[Event "Live Chess"]
[Site "Chess.com"]
[Date "2024.06.01"]
[Round "-"]
[White "Queensandpawns"]
[Black "Ninifu"]
[Result "1-0"]
[WhiteElo "2454"]
[BlackElo "2029"]
[TimeControl "300"]
[EndTime "10:48:25 PDT"]
[Termination "Queensandpawns won by resignation"]

1. e4 {[%clk 0:04:59.2]} 1... d5 {[%clk 0:04:52.1]} 2. Nc3 {[%clk 0:04:55.9]}
2... Nf6 {[%clk 0:04:50.7]} 3. e5 {[%clk 0:04:54]} 3... Ne4 {[%clk 0:04:49.9]}
4. Nxe4 {[%clk 0:04:52.2]} 4... dxe4 {[%clk 0:04:48.6]} 5. d4 {[%clk 0:04:52.1]}
5... exd3 {[%clk 0:04:47]} 6. Bxd3 {[%clk 0:04:51.5]} 6... Qd5 {[%clk
0:04:31.5]} 7. Nf3 {[%clk 0:04:49.4]} 7... Bg4 {[%clk 0:04:29.8]} 8. Bf4 {[%clk
0:04:45.2]} 8... Bxf3 {[%clk 0:04:26.4]} 9. gxf3 {[%clk 0:04:43.9]} 9... Nc6
{[%clk 0:04:23.7]} 10. Be4 {[%clk 0:04:42.2]} 10... Qxd1+ {[%clk 0:04:21.3]} 11.
Rxd1 {[%clk 0:04:42.1]} 11... e6 {[%clk 0:04:13.1]} 12. Ke2 {[%clk 0:04:39.5]}
12... Be7 {[%clk 0:04:10.2]} 13. Rhg1 {[%clk 0:04:37.4]} 13... g6 {[%clk
0:03:51]} 14. c3 {[%clk 0:04:33.5]} 14... Rd8 {[%clk 0:03:50]} 15. b4 {[%clk
0:04:30.9]} 15... Rd7 {[%clk 0:03:30.1]} 16. Rxd7 {[%clk 0:04:29.2]} 16... Kxd7
{[%clk 0:03:28.7]} 17. Rd1+ {[%clk 0:04:29.1]} 17... Kc8 {[%clk 0:03:26.7]} 18.
b5 {[%clk 0:04:26.3]} 18... Na5 {[%clk 0:03:20.7]} 19. Be3 {[%clk 0:04:24]}
19... Rd8 {[%clk 0:03:12.2]} 20. Rh1 {[%clk 0:04:14.7]} 20... Nc4 {[%clk
0:03:06.2]} 21. Bd4 {[%clk 0:04:13]} 21... Nb6 {[%clk 0:02:56.2]} 22. h4 {[%clk
0:04:11.2]} 22... h5 {[%clk 0:02:52.8]} 23. Ra1 {[%clk 0:03:57]} 23... Nd5
{[%clk 0:02:51.1]} 24. a4 {[%clk 0:03:51]} 24... Nf4+ {[%clk 0:02:46.6]} 25. Kf1
{[%clk 0:03:47.9]} 25... Bxh4 {[%clk 0:02:36.3]} 26. Bxa7 {[%clk 0:03:35.8]}
26... Rd2 {[%clk 0:02:15.9]} 27. Be3 {[%clk 0:03:33.6]} 27... Rb2 {[%clk
0:02:11.1]} 28. Bxf4 {[%clk 0:03:30.1]} 28... Rxf2+ {[%clk 0:02:09.5]} 29. Kg1
{[%clk 0:03:29.7]} 29... Rb2 {[%clk 0:02:03.1]} 30. Bd3 {[%clk 0:03:11.1]} 30...
g5 {[%clk 0:01:59.4]} 31. Be3 {[%clk 0:03:08.9]} 31... g4 {[%clk 0:01:56.9]} 32.
fxg4 {[%clk 0:03:06.9]} 32... hxg4 {[%clk 0:01:55.7]} 33. a5 {[%clk 0:03:06.6]}
33... Bg3 {[%clk 0:01:44.8]} 34. a6 {[%clk 0:03:03.8]} 1-0